[Event "Titled Tuesday Blitz March 28 Early 2023"]
[White "Makhnev, Denis"]
[Black "Mahdavi, Reza"]
[WhiteFideId "13707647"]
[BlackFideId "12595926"]
[WhiteElo "2525"]
[BlackElo "2208"]
[Result "0-1"]
[Round "06"]
[TimeControl "180+2"]
[Date "2023.03.28"]
[WhiteClock "0:00:04"]
[BlackClock "0:00:22"]

1. d4 {[%clk 0:03:00]}  Nf6 {[%clk 0:02:54]} 2. c4 {[%clk 0:03:01]}  g6 {[%clk 0:02:55]} 3. g3 {[%clk 0:03:01]}  Bg7 {[%clk 0:02:56]} 4. Bg2 {[%clk 0:03:02]}  d6 {[%clk 0:02:57]} 5. Nc3 {[%clk 0:03:03]}  O-O {[%clk 0:02:58]} 6. Nf3 {[%clk 0:03:03]}  c5 {[%clk 0:02:58]} 7. d5 {[%clk 0:03:03]}  e6 {[%clk 0:02:58]} 8. O-O {[%clk 0:03:03]}  exd5 {[%clk 0:02:59]} 9. cxd5 {[%clk 0:03:04]}  a6 {[%clk 0:02:56]} 10. a4 {[%clk 0:03:04]}  Re8 {[%clk 0:02:56]} 11. Bf4 {[%clk 0:03:05]}  Qc7 {[%clk 0:02:56]} 12. h3 {[%clk 0:02:55]}  Nbd7 {[%clk 0:02:57]} 13. Re1 {[%clk 0:02:55]}  Nh5 {[%clk 0:02:57]} 14. Bg5 {[%clk 0:02:53]}  Rb8 {[%clk 0:02:57]} 15. Rc1 {[%clk 0:02:21]}  b5 {[%clk 0:02:27]} 16. axb5 {[%clk 0:02:22]}  axb5 {[%clk 0:02:28]} 17. g4 {[%clk 0:02:23]}  Nhf6 {[%clk 0:02:28]} 18. b4 {[%clk 0:02:23]}  Qb6 {[%clk 0:02:03]} 19. Qb3 {[%clk 0:02:04]}  h6 {[%clk 0:01:57]} 20. Bf4 {[%clk 0:02:03]}  c4 {[%clk 0:01:55]} 21. Qc2 {[%clk 0:02:01]}  Bb7 {[%clk 0:01:55]} 22. Qd2 {[%clk 0:02:01]}  Kh7 {[%clk 0:01:34]} 23. e4 {[%clk 0:01:59]}  Ng8 {[%clk 0:01:25]} 24. Be3 {[%clk 0:01:51]}  Qd8 {[%clk 0:01:22]} 25. Nxb5 {[%clk 0:01:48]}  Ndf6 {[%clk 0:01:19]} 26. Ba7 {[%clk 0:01:36]}  Ra8 {[%clk 0:01:15]} 27. Nfd4 {[%clk 0:01:15]}  Ba6 {[%clk 0:01:03]} 28. Ra1 {[%clk 0:01:07]}  Bxb5 {[%clk 0:01:04]} 29. Nxb5 {[%clk 0:01:07]}  Nxe4 {[%clk 0:01:04]} 30. Bxe4 {[%clk 0:01:01]}  Bxa1 {[%clk 0:01:04]} 31. Bxg6+ {[%clk 0:00:48]}  fxg6 {[%clk 0:00:56]} 32. Rxa1 {[%clk 0:00:49]}  Qd7 {[%clk 0:00:54]} 33. Ra5 {[%clk 0:00:49]}  Rac8 {[%clk 0:00:51]} 34. Bd4 {[%clk 0:00:30]}  Ra8 {[%clk 0:00:51]} 35. Na7 {[%clk 0:00:30]}  Qf7 {[%clk 0:00:46]} 36. Bc3 {[%clk 0:00:25]}  Re4 {[%clk 0:00:35]} 37. Nc6 {[%clk 0:00:20]}  Rxa5 {[%clk 0:00:30]} 38. bxa5 {[%clk 0:00:21]}  Qf3 {[%clk 0:00:25]} 39. Qb2 {[%clk 0:00:13]}  Qxh3 {[%clk 0:00:21]} 40. f3 {[%clk 0:00:04]}  Qxf3 {[%clk 0:00:21]} 41. Qb7+ {[%clk 0:00:04]}  Ne7 {[%clk 0:00:21]} 42. Nxe7 {[%clk 0:00:04]}  Rxg4+ {[%clk 0:00:22]} 0-1


[Site "https://www.chess.com"]

[Event "Titled Tuesday Blitz March 28 Early 2023"]
[White "Bolourchifard, Farzad"]
[Black "Sjugirov, Sanan"]
[WhiteFideId "12510084"]
[BlackFideId "4189302"]
[WhiteElo "2317"]
[BlackElo "2569"]
[Result "0-1"]
[Round "06"]
[TimeControl "180+2"]
[Date "2023.03.28"]
[WhiteClock "0:00:02"]
[BlackClock "0:00:19"]

1. e4 {[%clk 0:03:00]}  e5 {[%clk 0:02:58]} 2. Nf3 {[%clk 0:03:01]}  d6 {[%clk 0:02:59]} 3. d4 {[%clk 0:03:01]}  exd4 {[%clk 0:03:00]} 4. Nxd4 {[%clk 0:03:01]}  Nf6 {[%clk 0:03:00]} 5. Nc3 {[%clk 0:03:01]}  Be7 {[%clk 0:03:01]} 6. Be2 {[%clk 0:03:01]}  O-O {[%clk 0:03:02]} 7. O-O {[%clk 0:03:02]}  Re8 {[%clk 0:03:02]} 8. Re1 {[%clk 0:03:02]}  Bf8 {[%clk 0:03:01]} 9. Bf1 {[%clk 0:03:03]}  Nbd7 {[%clk 0:03:00]} 10. Bg5 {[%clk 0:02:59]}  h6 {[%clk 0:02:53]} 11. Bh4 {[%clk 0:03:00]}  g6 {[%clk 0:02:45]} 12. h3 {[%clk 0:02:30]}  Bg7 {[%clk 0:02:45]} 13. Qd2 {[%clk 0:02:05]}  Nc5 {[%clk 0:02:35]} 14. f3 {[%clk 0:02:05]}  Bd7 {[%clk 0:02:33]} 15. Rad1 {[%clk 0:02:05]}  a6 {[%clk 0:02:22]} 16. Nb3 {[%clk 0:01:57]}  Nxb3 {[%clk 0:02:18]} 17. axb3 {[%clk 0:01:56]}  g5 {[%clk 0:02:14]} 18. Bf2 {[%clk 0:01:56]}  Be6 {[%clk 0:02:07]} 19. Bc4 {[%clk 0:01:53]}  Qc8 {[%clk 0:02:02]} 20. Bd4 {[%clk 0:01:47]}  b5 {[%clk 0:01:36]} 21. Bd5 {[%clk 0:01:38]}  Bxd5 {[%clk 0:01:31]} 22. Nxd5 {[%clk 0:01:36]}  Nxd5 {[%clk 0:01:30]} 23. Bxg7 {[%clk 0:01:31]}  Kxg7 {[%clk 0:01:31]} 24. exd5 {[%clk 0:01:17]}  Qd7 {[%clk 0:01:15]} 25. Qc3+ {[%clk 0:01:17]}  Kg6 {[%clk 0:01:08]} 26. Qd3+ {[%clk 0:00:46]}  Qf5 {[%clk 0:01:06]} 27. Qd2 {[%clk 0:00:34]}  Qf6 {[%clk 0:01:01]} 28. c4 {[%clk 0:00:29]}  Kg7 {[%clk 0:00:57]} 29. Re2 {[%clk 0:00:25]}  bxc4 {[%clk 0:00:50]} 30. bxc4 {[%clk 0:00:25]}  Rxe2 {[%clk 0:00:46]} 31. Qxe2 {[%clk 0:00:25]}  Rb8 {[%clk 0:00:47]} 32. Rd2 {[%clk 0:00:20]}  a5 {[%clk 0:00:47]} 33. Kh2 {[%clk 0:00:19]}  a4 {[%clk 0:00:47]} 34. Qd1 {[%clk 0:00:18]}  Rb4 {[%clk 0:00:45]} 35. Qc2 {[%clk 0:00:17]}  Qf4+ {[%clk 0:00:45]} 36. Kg1 {[%clk 0:00:17]}  Rxc4 {[%clk 0:00:44]} 37. Qd1 {[%clk 0:00:15]}  Qe3+ {[%clk 0:00:43]} 38. Kh2 {[%clk 0:00:03]}  Qe5+ {[%clk 0:00:41]} 39. Kg1 {[%clk 0:00:03]}  Rb4 {[%clk 0:00:41]} 40. Qc2 {[%clk 0:00:03]}  Qe3+ {[%clk 0:00:31]} 41. Kh1 {[%clk 0:00:03]}  Qe1+ {[%clk 0:00:20]} 42. Kh2 {[%clk 0:00:03]}  Qe5+ {[%clk 0:00:21]} 43. Kg1 {[%clk 0:00:03]}  Rb5 {[%clk 0:00:19]} 44. Qd1 {[%clk 0:00:03]}  Rc5 {[%clk 0:00:19]} 45. Qxa4 {[%clk 0:00:03]}  Qe1+ {[%clk 0:00:18]} 46. Kh2 {[%clk 0:00:01]}  Qxd2 {[%clk 0:00:19]} 47. b4 {[%clk 0:00:02]}  Qf4+ {[%clk 0:00:19]} 0-1


[Site "https://www.chess.com"]

[Event "Titled Tuesday Blitz March 28 Early 2023"]
[White "Drygalov, Andrey"]
[Black "Amilal Munkhdalai"]
[WhiteFideId "24171735"]
[BlackFideId "4903250"]
[WhiteElo "2471"]
[BlackElo "2293"]
[Result "1-0"]
[Round "06"]
[TimeControl "180+2"]
[Date "2023.03.28"]
[WhiteClock "0:00:13"]
[BlackClock "0:00:02"]

1. e4 {[%clk 0:03:00]}  c5 {[%clk 0:03:00]} 2. Nf3 {[%clk 0:03:00]}  Nc6 {[%clk 0:03:00]} 3. Bb5 {[%clk 0:03:01]}  e6 {[%clk 0:02:59]} 4. Bxc6 {[%clk 0:03:01]}  bxc6 {[%clk 0:02:59]} 5. d3 {[%clk 0:03:02]}  f6 {[%clk 0:02:59]} 6. O-O {[%clk 0:02:58]}  d6 {[%clk 0:02:53]} 7. d4 {[%clk 0:02:52]}  cxd4 {[%clk 0:02:51]} 8. Nxd4 {[%clk 0:02:53]}  Qd7 {[%clk 0:02:50]} 9. Nc3 {[%clk 0:02:52]}  e5 {[%clk 0:02:48]} 10. Nf5 {[%clk 0:02:52]}  g6 {[%clk 0:02:44]} 11. Ne3 {[%clk 0:02:51]}  Ne7 {[%clk 0:02:42]} 12. Nc4 {[%clk 0:02:50]}  d5 {[%clk 0:02:39]} 13. Nd2 {[%clk 0:02:43]}  Ba6 {[%clk 0:02:21]} 14. Re1 {[%clk 0:02:43]}  Bg7 {[%clk 0:02:10]} 15. Na4 {[%clk 0:02:42]}  Bc8 {[%clk 0:02:06]} 16. b3 {[%clk 0:02:40]}  O-O {[%clk 0:02:05]} 17. Ba3 {[%clk 0:02:40]}  Rd8 {[%clk 0:02:03]} 18. c4 {[%clk 0:02:27]}  d4 {[%clk 0:01:56]} 19. Nc5 {[%clk 0:02:25]}  Qe8 {[%clk 0:01:56]} 20. Nd3 {[%clk 0:02:24]}  g5 {[%clk 0:01:52]} 21. c5 {[%clk 0:02:14]}  Be6 {[%clk 0:01:50]} 22. Qc2 {[%clk 0:02:13]}  Qf7 {[%clk 0:01:45]} 23. Rac1 {[%clk 0:02:12]}  Ng6 {[%clk 0:01:41]} 24. Nc4 {[%clk 0:02:13]}  Nf4 {[%clk 0:01:38]} 25. Nd6 {[%clk 0:02:12]}  Qg6 {[%clk 0:01:38]} 26. Nf5 {[%clk 0:01:51]}  Bf8 {[%clk 0:01:32]} 27. Nxf4 {[%clk 0:01:49]}  gxf4 {[%clk 0:01:30]} 28. Qd3 {[%clk 0:01:50]}  a5 {[%clk 0:01:18]} 29. Rc2 {[%clk 0:01:45]}  Kf7 {[%clk 0:01:14]} 30. f3 {[%clk 0:01:45]}  Be7 {[%clk 0:01:13]} 31. Nd6+ {[%clk 0:01:31]}  Kg7 {[%clk 0:01:10]} 32. Nf5+ {[%clk 0:01:23]}  Kf7 {[%clk 0:01:08]} 33. Nd6+ {[%clk 0:01:14]}  Kg7 {[%clk 0:01:08]} 34. Kh1 {[%clk 0:01:08]}  h5 {[%clk 0:01:06]} 35. Nf5+ {[%clk 0:00:53]}  Kf7 {[%clk 0:01:06]} 36. Rg1 {[%clk 0:00:47]}  Rg8 {[%clk 0:01:01]} 37. Nd6+ {[%clk 0:00:47]}  Kg7 {[%clk 0:00:56]} 38. Nf5+ {[%clk 0:00:44]}  Kf7 {[%clk 0:00:56]} 39. g3 {[%clk 0:00:41]}  h4 {[%clk 0:00:48]} 40. g4 {[%clk 0:00:40]}  h3 {[%clk 0:00:43]} 41. Rd1 {[%clk 0:00:35]}  Rgb8 {[%clk 0:00:41]} 42. Qf1 {[%clk 0:00:31]}  Qh7 {[%clk 0:00:41]} 43. Nd6+ {[%clk 0:00:27]}  Kg8 {[%clk 0:00:40]} 44. Qf2 {[%clk 0:00:26]}  Qh6 {[%clk 0:00:21]} 45. Rg1 {[%clk 0:00:25]}  Kh7 {[%clk 0:00:18]} 46. Nf5 {[%clk 0:00:22]}  Bxf5 {[%clk 0:00:13]} 47. exf5 {[%clk 0:00:20]}  a4 {[%clk 0:00:11]} 48. b4 {[%clk 0:00:20]}  Rd8 {[%clk 0:00:11]} 49. Rd2 {[%clk 0:00:20]}  Rd5 {[%clk 0:00:09]} 50. Qe2 {[%clk 0:00:20]}  Rad8 {[%clk 0:00:06]} 51. Rgd1 {[%clk 0:00:20]}  Qh4 {[%clk 0:00:06]} 52. Kg1 {[%clk 0:00:20]}  d3 {[%clk 0:00:05]} 53. Qf2 {[%clk 0:00:19]}  Qxf2+ {[%clk 0:00:02]} 54. Kxf2 {[%clk 0:00:18]}  Rd4 {[%clk 0:00:03]} 55. Rb1 {[%clk 0:00:15]}  Bf8 {[%clk 0:00:02]} 56. Bc1 {[%clk 0:00:12]}  Bh6 {[%clk 0:00:02]} 57. a3 {[%clk 0:00:12]}  Bg5 {[%clk 0:00:02]} 58. Bb2 {[%clk 0:00:12]}  Bh4+ {[%clk 0:00:02]} 59. Kf1 {[%clk 0:00:13]}  Rc4 {[%clk 0:00:03]} 60. Rbd1 {[%clk 0:00:13]}  Rc2 {[%clk 0:00:02]} 61. Rxc2 {[%clk 0:00:13]} 1-0


[Site "https://www.chess.com"]

[Event "Titled Tuesday Blitz March 28 Early 2023"]
[White "Terry, Renato"]
[Black "Sochacki, Christophe"]
[WhiteFideId "3803457"]
[BlackFideId "662569"]
[WhiteElo "2579"]
[BlackElo "2474"]
[Result "1-0"]
[Round "06"]
[TimeControl "180+2"]
[Date "2023.03.28"]
[WhiteClock "0:00:05"]
[BlackClock "0:00:02"]

1. e4 {[%clk 0:02:58]}  c6 {[%clk 0:02:58]} 2. Nf3 {[%clk 0:02:58]}  d5 {[%clk 0:02:58]} 3. exd5 {[%clk 0:02:59]}  cxd5 {[%clk 0:02:58]} 4. Ne5 {[%clk 0:03:00]}  Nc6 {[%clk 0:02:51]} 5. d4 {[%clk 0:03:00]}  e6 {[%clk 0:02:50]} 6. c3 {[%clk 0:03:00]}  Nxe5 {[%clk 0:02:30]} 7. dxe5 {[%clk 0:02:56]}  Qc7 {[%clk 0:02:25]} 8. Bf4 {[%clk 0:02:52]}  Ne7 {[%clk 0:02:23]} 9. Bd3 {[%clk 0:02:30]}  Ng6 {[%clk 0:02:17]} 10. Bg3 {[%clk 0:02:30]}  Nxe5 {[%clk 0:02:08]} 11. Bb5+ {[%clk 0:02:30]}  Bd7 {[%clk 0:02:07]} 12. Bxd7+ {[%clk 0:02:31]}  Kxd7 {[%clk 0:02:07]} 13. c4 {[%clk 0:02:10]}  Qa5+ {[%clk 0:01:55]} 14. Nc3 {[%clk 0:02:10]}  Nxc4 {[%clk 0:01:54]} 15. O-O {[%clk 0:02:10]}  Bd6 {[%clk 0:01:42]} 16. Qg4 {[%clk 0:02:10]}  g6 {[%clk 0:01:34]} 17. Nxd5 {[%clk 0:01:56]}  Qxd5 {[%clk 0:01:27]} 18. Rfd1 {[%clk 0:01:55]}  Nd2 {[%clk 0:00:48]} 19. Qe2 {[%clk 0:01:49]}  Bb4 {[%clk 0:00:34]} 20. a3 {[%clk 0:01:49]}  Ke7 {[%clk 0:00:35]} 21. axb4 {[%clk 0:01:48]}  Rhd8 {[%clk 0:00:35]} 22. Be5 {[%clk 0:01:04]}  Qd3 {[%clk 0:00:21]} 23. Qg4 {[%clk 0:00:33]}  Qf5 {[%clk 0:00:22]} 24. Qxf5 {[%clk 0:00:13]}  gxf5 {[%clk 0:00:23]} 25. Rac1 {[%clk 0:00:12]}  Rac8 {[%clk 0:00:21]} 26. Rxc8 {[%clk 0:00:04]}  Rxc8 {[%clk 0:00:21]} 27. h4 {[%clk 0:00:04]}  Nc4 {[%clk 0:00:19]} 28. Bc3 {[%clk 0:00:03]}  f6 {[%clk 0:00:15]} 29. b5 {[%clk 0:00:04]}  e5 {[%clk 0:00:13]} 30. g3 {[%clk 0:00:02]}  Rd8 {[%clk 0:00:11]} 31. Bb4+ {[%clk 0:00:02]}  Ke8 {[%clk 0:00:12]} 32. Rc1 {[%clk 0:00:03]}  Rd4 {[%clk 0:00:11]} 33. Bc5 {[%clk 0:00:04]}  Nxb2 {[%clk 0:00:04]} 34. Bxd4 {[%clk 0:00:03]}  exd4 {[%clk 0:00:05]} 35. Kf1 {[%clk 0:00:02]}  d3 {[%clk 0:00:04]} 36. Ke1 {[%clk 0:00:02]}  f4 {[%clk 0:00:02]} 37. gxf4 {[%clk 0:00:02]}  Kd7 {[%clk 0:00:03]} 38. Kd2 {[%clk 0:00:03]}  Ke6 {[%clk 0:00:02]} 39. Kc3 {[%clk 0:00:03]}  Na4+ {[%clk 0:00:01]} 40. Kxd3 {[%clk 0:00:04]}  Kf5 {[%clk 0:00:01]} 41. Rc7 {[%clk 0:00:04]}  Kxf4 {[%clk 0:00:02]} 42. Rc4+ {[%clk 0:00:04]}  Kf3 {[%clk 0:00:02]} 43. Rxa4 {[%clk 0:00:05]} 1-0


[Site "https://www.chess.com"]

[Event "Titled Tuesday Blitz March 28 Early 2023"]
[White "Nurmanova, Alua"]
[Black "Vasquez Schroeder, Rodrigo"]
[WhiteFideId "13729390"]
[BlackFideId "3400042"]
[WhiteElo "2253"]
[BlackElo "2600"]
[Result "0-1"]
[Round "06"]
[TimeControl "180+2"]
[Date "2023.03.28"]
[WhiteClock "0:00:02"]
[BlackClock "0:00:35"]

1. e4 {[%clk 0:03:00]}  c5 {[%clk 0:02:59]} 2. Nf3 {[%clk 0:03:00]}  d6 {[%clk 0:03:00]} 3. d4 {[%clk 0:03:01]}  cxd4 {[%clk 0:03:00]} 4. Nxd4 {[%clk 0:03:02]}  Nf6 {[%clk 0:03:00]} 5. Nc3 {[%clk 0:03:02]}  a6 {[%clk 0:03:01]} 6. Bg5 {[%clk 0:03:00]}  e6 {[%clk 0:03:01]} 7. f4 {[%clk 0:03:00]}  Nbd7 {[%clk 0:03:01]} 8. Qf3 {[%clk 0:03:01]}  Qc7 {[%clk 0:03:02]} 9. O-O-O {[%clk 0:03:01]}  b5 {[%clk 0:03:02]} 10. Bd3 {[%clk 0:03:00]}  Bb7 {[%clk 0:03:03]} 11. Rhe1 {[%clk 0:03:01]}  Qb6 {[%clk 0:03:03]} 12. Bxf6 {[%clk 0:02:35]}  Nxf6 {[%clk 0:03:00]} 13. Qg3 {[%clk 0:02:33]}  O-O-O {[%clk 0:02:55]} 14. Nb3 {[%clk 0:02:28]}  b4 {[%clk 0:02:46]} 15. Nb1 {[%clk 0:02:20]}  d5 {[%clk 0:02:45]} 16. exd5 {[%clk 0:02:15]}  Nxd5 {[%clk 0:02:41]} 17. f5 {[%clk 0:02:13]}  Bd6 {[%clk 0:02:26]} 18. Qxg7 {[%clk 0:02:09]}  Bf4+ {[%clk 0:02:25]} 19. N1d2 {[%clk 0:02:08]}  Ne3 {[%clk 0:02:14]} 20. Kb1 {[%clk 0:01:41]}  Nxd1 {[%clk 0:02:06]} 21. Rxd1 {[%clk 0:01:32]}  Qc7 {[%clk 0:02:01]} 22. fxe6 {[%clk 0:01:08]}  fxe6 {[%clk 0:02:00]} 23. Qg4 {[%clk 0:01:09]}  Kb8 {[%clk 0:01:58]} 24. Qxe6 {[%clk 0:00:53]}  Rhe8 {[%clk 0:01:52]} 25. Qg4 {[%clk 0:00:48]}  Bxh2 {[%clk 0:01:51]} 26. Qxb4 {[%clk 0:00:45]}  Bd6 {[%clk 0:01:50]} 27. Qa4 {[%clk 0:00:43]}  Qc6 {[%clk 0:01:45]} 28. Qh4 {[%clk 0:00:40]}  Qc7 {[%clk 0:01:36]} 29. a4 {[%clk 0:00:24]}  Re7 {[%clk 0:01:29]} 30. g4 {[%clk 0:00:22]}  Bf4 {[%clk 0:01:22]} 31. Ka2 {[%clk 0:00:20]}  h6 {[%clk 0:01:19]} 32. Nc4 {[%clk 0:00:19]}  Bg5 {[%clk 0:01:18]} 33. Qf2 {[%clk 0:00:18]}  Red7 {[%clk 0:01:14]} 34. Nca5 {[%clk 0:00:16]}  Bd5 {[%clk 0:01:09]} 35. Ka1 {[%clk 0:00:14]}  Bxb3 {[%clk 0:01:04]} 36. Nxb3 {[%clk 0:00:15]}  Qc6 {[%clk 0:01:02]} 37. Nc5 {[%clk 0:00:15]}  Rd4 {[%clk 0:00:58]} 38. Re1 {[%clk 0:00:12]}  Qxc5 {[%clk 0:00:57]} 39. Qf7 {[%clk 0:00:09]}  Rxa4+ {[%clk 0:00:52]} 40. Kb1 {[%clk 0:00:10]}  Qa5 {[%clk 0:00:49]} 41. Qb3+ {[%clk 0:00:08]}  Ka7 {[%clk 0:00:46]} 42. Qf7+ {[%clk 0:00:08]}  Ka8 {[%clk 0:00:39]} 43. Qf3+ {[%clk 0:00:02]}  Kb8 {[%clk 0:00:37]} 44. Qg3+ {[%clk 0:00:02]}  Bf4 {[%clk 0:00:35]} 0-1


[Site "https://www.chess.com"]

[Event "Titled Tuesday Blitz March 28 Early 2023"]
[White "Mitrabha, Guha"]
[Black "Belov, Alexei"]
[WhiteFideId "5057000"]
[BlackFideId "4128206"]
[WhiteElo "2507"]
[BlackElo "2564"]
[Result "1-0"]
[Round "06"]
[TimeControl "180+2"]
[Date "2023.03.28"]
[WhiteClock "0:00:38"]
[BlackClock "0:00:10"]

1. Nf3 {[%clk 0:02:59]}  Nf6 {[%clk 0:02:59]} 2. c4 {[%clk 0:02:57]}  e6 {[%clk 0:02:59]} 3. g3 {[%clk 0:02:57]}  d5 {[%clk 0:02:59]} 4. Bg2 {[%clk 0:02:50]}  Be7 {[%clk 0:02:59]} 5. O-O {[%clk 0:02:50]}  O-O {[%clk 0:02:59]} 6. b3 {[%clk 0:02:49]}  c5 {[%clk 0:02:59]} 7. cxd5 {[%clk 0:02:27]}  Nxd5 {[%clk 0:02:59]} 8. Bb2 {[%clk 0:02:26]}  Nc6 {[%clk 0:02:58]} 9. d4 {[%clk 0:02:17]}  cxd4 {[%clk 0:02:49]} 10. Nxd4 {[%clk 0:02:17]}  Bd7 {[%clk 0:02:45]} 11. Nd2 {[%clk 0:02:12]}  Bf6 {[%clk 0:02:39]} 12. Nxc6 {[%clk 0:02:08]}  Bxc6 {[%clk 0:02:37]} 13. Qc1 {[%clk 0:02:03]}  Rc8 {[%clk 0:02:34]} 14. Ne4 {[%clk 0:01:56]}  Bxb2 {[%clk 0:02:11]} 15. Qxb2 {[%clk 0:01:57]}  Qe7 {[%clk 0:02:09]} 16. Rac1 {[%clk 0:01:46]}  f5 {[%clk 0:01:48]} 17. Nc5 {[%clk 0:01:44]}  Nb4 {[%clk 0:01:48]} 18. a3 {[%clk 0:01:42]}  Bxg2 {[%clk 0:01:46]} 19. Kxg2 {[%clk 0:01:34]}  Rxc5 {[%clk 0:01:46]} 20. axb4 {[%clk 0:01:33]}  Rxc1 {[%clk 0:01:41]} 21. Rxc1 {[%clk 0:01:34]}  Qxb4 {[%clk 0:01:41]} 22. Rc7 {[%clk 0:01:34]}  Rf7 {[%clk 0:01:36]} 23. Rc8+ {[%clk 0:01:34]}  Rf8 {[%clk 0:01:36]} 24. Rc7 {[%clk 0:01:34]}  Rf7 {[%clk 0:01:36]} 25. Rc4 {[%clk 0:01:25]}  Qb5 {[%clk 0:01:32]} 26. Qd4 {[%clk 0:01:17]}  Qd5+ {[%clk 0:01:23]} 27. Qxd5 {[%clk 0:01:16]}  exd5 {[%clk 0:01:23]} 28. Rc8+ {[%clk 0:01:16]}  Rf8 {[%clk 0:01:23]} 29. Rc7 {[%clk 0:01:17]}  Rf7 {[%clk 0:01:24]} 30. Rc8+ {[%clk 0:01:17]}  Rf8 {[%clk 0:01:24]} 31. Rc7 {[%clk 0:01:18]}  Rf7 {[%clk 0:01:25]} 32. Rc5 {[%clk 0:01:15]}  Rd7 {[%clk 0:01:24]} 33. Kf3 {[%clk 0:01:16]}  Kf7 {[%clk 0:01:19]} 34. Ke3 {[%clk 0:01:16]}  Ke6 {[%clk 0:01:16]} 35. Kd4 {[%clk 0:01:17]}  g5 {[%clk 0:01:05]} 36. f3 {[%clk 0:01:13]}  h5 {[%clk 0:01:04]} 37. e3 {[%clk 0:01:11]}  g4 {[%clk 0:01:03]} 38. f4 {[%clk 0:01:11]}  a6 {[%clk 0:00:57]} 39. b4 {[%clk 0:01:09]}  Rd6 {[%clk 0:00:32]} 40. b5 {[%clk 0:00:54]}  Rb6 {[%clk 0:00:30]} 41. bxa6 {[%clk 0:00:54]}  bxa6 {[%clk 0:00:24]} 42. Rc8 {[%clk 0:00:52]}  Rb4+ {[%clk 0:00:20]} 43. Kd3 {[%clk 0:00:51]}  Rb2 {[%clk 0:00:19]} 44. Re8+ {[%clk 0:00:48]}  Kd6 {[%clk 0:00:19]} 45. Re5 {[%clk 0:00:45]}  Rxh2 {[%clk 0:00:18]} 46. Rxf5 {[%clk 0:00:45]}  a5 {[%clk 0:00:17]} 47. Kd4 {[%clk 0:00:42]}  Rd2+ {[%clk 0:00:17]} 48. Kc3 {[%clk 0:00:43]}  Rg2 {[%clk 0:00:17]} 49. Rxh5 {[%clk 0:00:42]}  Rxg3 {[%clk 0:00:17]} 50. Kd4 {[%clk 0:00:43]}  a4 {[%clk 0:00:16]} 51. Rxd5+ {[%clk 0:00:43]}  Ke6 {[%clk 0:00:17]} 52. Ra5 {[%clk 0:00:43]}  Rg1 {[%clk 0:00:16]} 53. Rxa4 {[%clk 0:00:43]}  g3 {[%clk 0:00:16]} 54. Ke4 {[%clk 0:00:42]}  Re1 {[%clk 0:00:13]} 55. Ra2 {[%clk 0:00:41]}  Rg1 {[%clk 0:00:11]} 56. Kf3 {[%clk 0:00:38]}  Kf5 {[%clk 0:00:10]} 57. Ra5+ {[%clk 0:00:37]}  Kf6 {[%clk 0:00:10]} 58. Rg5 {[%clk 0:00:38]} 1-0


[Site "https://www.chess.com"]